Cogmind - Beta 13 @@@ ROGUE MODE // 2024.05.14 @ 17:52:16 Player: Lunace Result: Destroyed by Lightning with EMDS Performance ------------- Evolutions (7) 3500 Regions Visited (17) 3400 Robots Destroyed (127) 635 Value Destroyed (6204) 6204 Prototype IDs (43) 860 Alien Tech Used (1) 200 Bonus (8924) 8924 TOTAL SCORE: 23723 Bonus ------- High Alert Combat Kills 1783 Follower Combat Kills 1853 Network Hubs Disabled 400 Aligned with FarCom 300 Built Enhanced Grunts 300 A7 Reached Mainframe 300 Met R17 at Cetus 500 Used Core Reset Matrix 3000 Met R17 at Research 2000 Met Sigix 2000 Friendly Fire -3512 Cogmind --------- Core Integrity 0/1300 Matter 9/300 Energy 100/100 System Corruption 12% Temperature Cool (0) Movement Core (50) Location -3/Quarantine Parts ------- > --- POWER (2) -------- (None) > --- PROPULSION (6) --- (None) > --- UTILITY (10) ----- Machine Analyzer Advanced Signal Interpreter Advanced Corruption Screen > --- WEAPON (3) ------- (None) > --- INVENTORY (5) ---- Subatomic Replicator Improved Plasma Cutter Nanosword Sigix Containment Pod Peak State ------------ > --- POWER ------------ Light Particle Reactor Cooled Antimatter Reactor > --- PROPULSION ------- Improved Heavy Treads Armored Heavy Treads Centrium Heavy Treads > --- UTILITY ---------- Experimental Heat Sink Large Storage Unit Advanced Energy Well Long-range Sensor Array Advanced Signal Interpreter Advanced Transmission Jammer Centrium Medium Armor Plating Graphene Brace Improved Corruption Screen Improved Recalibrator > --- WEAPON ----------- Gamma Bomb Array Micro-nuke Launcher Vibroblade > --- INVENTORY -------- Neutrino Core Centrium Heavy Treads Advanced Signal Interpreter Quantum Capacitor Skeleton Box Improved Corruption Screen Improved Corruption Screen Tesla Rifle Hypervelocity Railgun Hardcell Cannon Linear Accelerator Improved Plasma Cutter Vibroblade [Rating: 161] Favorites ----------- Power Deuterium Engine Engine Deuterium Engine Power Core Neutrino Core Reactor Quantum Reactor Propulsion Myomer Leg Treads Light Treads Leg Myomer Leg Wheel Compact Wheel Flight Unit Flying Fortress v7 Utility Large Storage Unit Device Graphene Brace Storage Large Storage Unit Processor Advanced Signal Interpreter Protection Centrium Medium Armor Plating Weapon AWS/Thermal Energy Gun AWS/Thermal Ballistic Gun Assault Rifle Ballistic Cannon Linear Accelerator Launcher Gamma Bomb Array Special Weapon Improved Plasma Cutter Impact Weapon Great Maul Slashing Weapon Nanosword Piercing Weapon Kinetic Spear Build | -11 -10 -10 -9 -9 -9 -8 -8 -7 -6 -5 -4 -4 -4 -4 -4 -3 -3 ------- Run | Yrd Mat Min Mat Min Exi Min Mat Fac Fac Fac Fac Ext Cet Arc Hub Res Qua Slots Evolved 14 | . . . 2 . . . 2 2 2 2 2 . . . . 2 . Power 1 | . . . . . . . . . . . . . . . . 1 . Propulsion 4 | . . . 1 . . . 1 . . 2 . . . . . . . Utility 8 | . . . 1 . . . . 2 2 . 2 . . . . 1 . Weapon 1 | . . . . . . . 1 . . . . . . . . . . Parts Attached 199 | 6 3 2 7 2 2 . 11 9 14 9 12 27 17 3 23 24 28 Power 19 | 1 . 1 . . . . . . 3 1 3 . 2 . 2 3 3 Engine 5 | 1 . 1 . . . . . . 2 . 1 . . . . . . Core 5 | . . . . . . . . . . 1 1 . 1 . . 1 1 Reactor 9 | . . . . . . . . . 1 . 1 . 1 . 2 2 2 Propulsion 50 | 2 . . 1 . . . 7 1 . 4 1 13 8 . 2 4 7 Treads 21 | 2 . . 1 . . . 6 . . 2 . . 2 . . 2 6 Leg 21 | . . . . . . . . . . . . 10 6 . 2 2 1 Wheel 1 | . . . . . . . . . . . . 1 . . . . . Hover . | . . . . . . . . . . . . . . . . . . Flight 7 | . . . . . . . 1 1 . 2 1 2 . . . . . Utility 66 | 1 1 1 1 . 1 . 2 6 7 2 3 7 5 . 11 11 7 Device 31 | . 1 1 . . . . . 2 4 1 2 2 2 . 5 8 3 Storage 10 | 1 . . . . 1 . . 1 . . 1 1 . . 2 2 1 Processor 15 | . . . . . . . . 3 3 1 . 3 1 . . 1 3 Hackware . | . . . . . . . . . . . . . . . . . . Protection 10 | . . . 1 . . . 2 . . . . 1 2 . 4 . . Artifact . | . . . . . . . . . . . . . . . . . . Weapon 64 | 2 2 . 5 2 1 . 2 2 4 2 5 7 2 3 8 6 11 Energy Gun 9 | . . . . 1 1 . . . 1 . 1 2 . 2 . 1 . Energy Cannon . | . . . . . . . . . . . . . . . . . . Ballistic Gun 9 | 2 1 . 3 . . . . . . . . . 1 . 1 . 1 Ballistic Cannon 3 | . . . . . . . . . . . . . . . . . 3 Launcher 21 | . 1 . 2 . . . 1 1 1 1 1 3 . . 5 3 2 Special Weapon 1 | . . . . . . . . . . . . . . . . . 1 Impact Weapon 5 | . . . . 1 . . 1 1 2 . . . . . . . . Slashing Weapon 6 | . . . . . . . . . . . . . . . . 2 4 Piercing Weapon 10 | . . . . . . . . . . 1 3 2 1 1 2 . . Special Melee Weapon . | . . . . . . . . . . . . . . . . . . Unidentified Prototypes 16 | . . . . . . . . . 1 3 1 . 4 . 3 3 1 Parts Lost 34 | . . . . . . . . . 1 . . 4 1 . 9 1 18 Power 3 | . . . . . . . . . . . . . . . . . 3 Propulsion 9 | . . . . . . . . . . . . 2 . . 1 . 6 Utility 12 | . . . . . . . . . 1 . . 1 1 . 3 1 5 Weapon 10 | . . . . . . . . . . . . 1 . . 5 . 4 Highest Loss Streak 15 | . . . . . . . . . 1 . . 3 1 . 2 1 15 To Critical Strikes 1 | . . . . . . . . . . . . 1 . . . . . Average Slot Usage (%) 83 | . 94 99 85 100 91 88 85 67 69 71 77 87 97 89 86 84 78 Engine 3 | . 14 14 11 11 11 11 9 7 5 . . . . . . . . Core 1 | . . . . . . . . . . 3 3 . 3 . . 3 1 Reactor 2 | . . . . . . . . . . 1 1 5 1 5 5 5 6 Treads 12 | . 28 28 22 33 33 33 33 . . 2 . . 2 10 10 9 13 Leg 4 | . . . . . . . . . . . . 14 26 10 8 3 . Flight 2 | . . . . . . . . 7 6 10 15 7 . . . . . Device 15 | . 9 13 11 11 11 11 2 7 12 12 15 18 11 10 11 16 28 Storage 8 | . 14 14 11 11 11 11 9 10 6 5 9 8 6 5 8 9 4 Processor 10 | . . . . . . . . 17 23 20 21 17 17 21 13 9 8 Protection 5 | . . . 8 11 11 11 13 . . . . 1 9 10 12 10 . Energy Gun 4 | . . . . 1 11 11 9 7 6 5 6 6 8 7 3 2 . Ballistic Gun 3 | . 27 28 20 9 . . . . . . . . 1 5 3 . 1 Launcher 2 | . . . 1 7 . . 8 4 . . . 1 4 . 2 5 4 Piercing Weapon 1 | . . . . . . . . . . 4 3 3 . 2 3 3 . Naked Turns . | . . . . . . . . . . . . . . . . . . Heaviest Build 163 | 14 15 23 34 34 50 50 57 43 48 46 58 73 80 80 88 102 163 Greatest Support 215 | 40 40 40 60 60 60 60 80 50 50 62 63 150 160 160 160 215 215 Greatest Overweight (x) 2 | . . . . . . . 2 . . . . 1 . . . . . Average Overweight (x) . | . . . . . . . . . . . . . . . . . . Largest Inventory Capacity 25 | 8 8 8 8 8 15 15 15 15 15 15 15 15 15 15 15 15 25 Average Capacity 13 | 7 8 8 8 8 11 15 15 15 15 15 15 15 15 15 15 15 14 Most Carried 15 | 2 6 8 8 8 12 12 15 15 15 15 15 15 15 15 15 15 15 Average Carried 11 | . 3 6 7 8 8 12 12 12 13 14 12 12 13 14 12 12 13 Final Capacity 15 | 8 8 8 8 8 15 15 15 15 15 15 15 15 15 15 15 15 5 Final Carried 15 | 2 6 8 8 8 12 12 15 13 14 15 11 13 14 15 13 14 5 Class Distribution -------------------- 44% | Mutant 20% | Scavenger-Mutant 13% | Scout 8% | Scavenger-Tank 4% | Ninja Dominant Class ---------------- Mutant | -10/Materials Mutant | -10/Mines Mutant | -9/Materials Mutant | -9/Mines Mutant | -9/Exiles Mutant | -8/Mines Tank | -8/Materials Scout | -7/Factory Scout | -6/Factory Scout | -5/Factory Ninja | -4/Factory Ninja | -4/Extension Scavenger-Tank | -4/Cetus Scavenger-Mutant | -4/Archives Scavenger-Mutant | -4/Hub_04(d) Scavenger-Mutant | -3/Research Mutant | -3/Quarantine Resources | -11 -10 -10 -9 -9 -9 -8 -8 -7 -6 -5 -4 -4 -4 -4 -4 -3 -3 ----------- Run | Yrd Mat Min Mat Min Exi Min Mat Fac Fac Fac Fac Ext Cet Arc Hub Res Qua Matter Collected 3663 | 206 29 . 106 136 . 90 143 101 146 80 122 458 292 25 937 413 379 Remotely . | . . . . . . . . . . . . . . . . . . Salvage Created 6033 | . 29 . 188 157 . . 364 52 280 141 221 546 78 . 2694 550 733 Parts 282 | . 1 . 13 7 . . 28 4 10 8 6 20 7 . 108 21 49 Haulers Intercepted 4 | . . . . . . . . . . . 1 . . . 2 1 . Recyclers Shooed 4 | . . . 3 . . . . . . . . 1 . . . . . Parts Field Recycled . | . . . . . . . . . . . . . . . . . . Retrieved Matter . | . . . . . . . . . . . . . . . . . . Parts Self-Destructed . | . . . . . . . . . . . . . . . . . . Prevented . | . . . . . . . . . . . . . . . . . . Kills | -11 -10 -10 -9 -9 -9 -8 -8 -7 -6 -5 -4 -4 -4 -4 -4 -3 -3 ------- Run | Yrd Mat Min Mat Min Exi Min Mat Fac Fac Fac Fac Ext Cet Arc Hub Res Qua Combat Hostiles Destroyed 78 | . . . 4 5 . . 8 2 4 2 3 7 . . 29 5 9 Melee 10 | . . . . 2 . . . . . . . 1 . . 5 . 2 Guns 23 | . . . 1 1 . . 4 . 4 1 . 2 . . 7 1 2 Cannons 2 | . . . . . . . . . . . . . . . . . 2 AOE 36 | . . . 3 2 . . 4 2 . 1 3 3 . . 12 3 3 Classes Destroyed 17 | . 1 . 4 . . . . 2 1 . 1 2 . . 5 1 . Worker 9 | . . . . . . . . 1 1 . 1 . . . 4 1 1 Builder 9 | . 1 . . . . . 1 . . . . . . . 4 . 3 Tunneler 1 | . . . . . . . . . . . . . . . 1 . . Hauler 4 | . . . . . . . . . . . 1 . . . 2 1 . Recycler 7 | . . . 1 . . . . . . . . 2 . . 2 1 1 Mechanic 2 | . . . . . . . . . . . . . . . 2 . . Operator 3 | . . . . . . . . . . . . 1 . . 2 . . Watcher 10 | . . . 1 . . . 1 . 1 1 . 1 1 . 3 1 . Swarmer 5 | . . . . . . . . 2 . . . 3 . . . . . Grunt 38 | . . . 3 5 . . 6 . 2 1 3 1 . . 13 4 . Brawler 3 | . . . . . . . . . . . . . . . 3 . . Duelist 5 | . . . . . . . . . 2 1 . . . . 2 . . Protector 2 | . . . . . . . . . . . . . . . 1 . 1 Sentry 6 | . . . 1 . . . 2 . . . . 2 . . 1 . . Hunter 5 | . . . . . . . . . . . . 1 . . 2 . 2 Programmer 10 | . . . . . . . . . . . . . . . 4 . 6 Enhanced Grunt 1 | . . . . . . . . . . . . . . . 1 . . Lightning 3 | . . . . . . . . . . . . . . . 3 . . Striker 1 | . . . . . . . . . . . . . . . . 1 . Thug 1 | . . . . . . . . . . . . . . . 1 . . Guerrilla 1 | . . . . . . . . . . . . . . . 1 . . Best Kill Streak 8 | . 1 . 5 3 . . 4 2 3 1 4 3 1 . 8 4 3 Combat Bots Only 7 | . . . 3 3 . . 4 2 3 1 3 3 . . 7 4 3 Max Kills in Single Turn 4 | . 1 . 2 1 . . 2 1 1 1 3 3 1 . 4 2 2 Gunslinging 1 | . . . . . . . . . . . . . . . 1 . . Exploded 3 | . . . 2 1 . . 2 1 . 1 3 3 . . 3 2 1 Melee 1 | . . . . 1 . . . . . . . 1 . . 1 . 1 Uniques/NPCs Destroyed 1 | . . . . . . . . . . . . . 1 . . . . A7 (-4/Cetus) Combat | -11 -10 -10 -9 -9 -9 -8 -8 -7 -6 -5 -4 -4 -4 -4 -4 -3 -3 -------- Run | Yrd Mat Min Mat Min Exi Min Mat Fac Fac Fac Fac Ext Cet Arc Hub Res Qua Hostile Shots Fired 628 | . . . 8 22 . . 6 1 1 2 34 34 40 . 145 26 309 Missed 168 | . . . 2 5 . . 3 1 . 1 10 9 9 . 34 9 85 Damage Taken 12322 | . . . 71 245 . . 44 29 108 19 562 757 798 27 3208 620 5834 Core 1875 | . . . 6 . . . . . 25 . 32 129 55 . 313 64 1251 Absorbed by Shields 896 | . . . 28 68 . . 8 . 11 . . 283 191 27 96 . 184 Reduced by Siege Mode 27 | . . . . . . . . . . . . . . . . . 27 Core Remaining (%) 93 | 100 . 100 . . . 98 100 100 97 100 . . . . 54 . . Volleys Fired 205 | . 6 . 12 7 . . 3 2 . 3 3 14 8 3 78 28 38 Largest 3 | . 2 . 2 1 . . 1 1 . 1 1 2 3 2 3 2 3 Hottest 217 | . 40 . 43 33 . . 33 33 . 39 39 162 201 123 217 129 171 Shots Fired 375 | . 10 . 19 7 . . 22 3 16 14 22 54 20 4 100 30 54 Gun 269 | . 9 . 17 5 . . 19 1 16 11 19 44 15 4 67 17 25 Cannon 17 | . . . . . . . . . . . . . . . . . 17 Launcher 89 | . 1 . 2 2 . . 3 2 . 3 3 10 5 . 33 13 12 Special . | . . . . . . . . . . . . . . . . . . Kinetic 107 | . 9 . 17 5 . . . . . . . . 1 3 30 . 42 Thermal 162 | . . . . . . . 19 1 16 11 19 44 14 1 37 . . Explosive 61 | . 1 . 2 2 . . 3 2 . 3 3 10 5 . 19 7 4 Electromagnetic 45 | . . . . . . . . . . . . . . . 14 23 8 Robot Hit Streak 41 | . 3 . 6 3 . . 12 14 13 4 11 41 6 1 8 4 8 Robot Miss Streak 7 | . 4 . 2 1 . . 1 . 1 1 2 2 4 1 3 7 6 Penetration Max 1 | . . . . . . . . . . . . . . . 1 . 1 Secondary Targets 1 | . . . . . . . . . . . . . . . 1 . . Max Gunslinging Chain 1 | . . . . . . . . . . . . . . . 1 . . Autonomous 101 | . . . . . . . 19 1 16 11 19 35 . . . . . Shots Hit Robots 287 | . 4 . 15 10 . . 18 4 16 9 19 48 14 3 62 15 50 Core Hits 321 | . 2 . 13 7 . . 20 4 8 7 16 20 26 1 122 37 38 Critical Kills 7 | . . . . . . . . . . . . . . . 5 . 2 Critical Parts Destroyed 6 | . . . . . . . . . 1 . . . . . 3 . 2 Critical Strikes 23 | . . . . . . . . . 1 . . 1 1 . 10 . 10 Destroy 12 | . . . . . . . . . . . . . . . 8 . 4 Blast 1 | . . . . . . . . . . . . . . . . . 1 Smash 1 | . . . . . . . . . 1 . . . . . . . . Sever 5 | . . . . . . . . . . . . . . . . . 5 Impale 4 | . . . . . . . . . . . . 1 1 . 2 . . Melee Attacks 125 | . . . . 8 . . . 3 14 7 7 16 2 1 16 3 48 Impact 25 | . . . . 8 . . . 3 14 . . . . . . . . Slashing 48 | . . . . . . . . . . . . . . . . . 48 Piercing 52 | . . . . . . . . . . 7 7 16 2 1 16 3 . Sneak Attacks 14 | . . . . . . . . 1 1 . 1 2 2 1 2 2 2 Combat Hostiles 2 | . . . . . . . . . . . . 1 . . 1 . . Follow-up Attacks 1 | . . . . . . . . . . . . . . . . . 1 Damage Inflicted 19883 | . 76 . 508 512 . . 812 337 555 522 1189 1926 1002 156 6778 2802 2708 Guns 4993 | . 52 . 198 51 . . 504 27 400 237 455 1095 264 75 1289 196 150 Cannons 251 | . . . . . . . . . . . . . . . . . 251 Explosions 11375 | . 24 . 310 204 . . 308 177 . 285 614 349 618 . 4986 2419 1081 Melee 3246 | . . . . 257 . . . 133 155 . 102 482 120 81 503 187 1226 Ramming 18 | . . . . . . . . . . . 18 . . . . . . Kinetic 1386 | . 52 . 198 51 . . . . . . . . . 48 636 . 401 Thermal 4205 | . . . 22 . . . 504 27 400 237 455 1095 264 27 1051 123 . Explosive 7967 | . 24 . 288 204 . . 308 177 . 285 614 349 618 . 2706 1766 628 Electromagnetic 3061 | . . . . . . . . . . . . . . . 1882 726 453 Impact 545 | . . . . 257 . . . 133 155 . . . . . . . . Slashing 1226 | . . . . . . . . . . . . . . . . . 1226 Piercing 1475 | . . . . . . . . . . . 102 482 120 81 503 187 . Highest Corruption 12 | . . . . . . . . . . . . 3 3 3 3 . 12 Average Corruption 3 | . . . . . . . . . . . . 2 3 3 3 . 3 Corruption Purged . | . . . . . . . . . . . . . . . . . . Corruption Blocked 49 | . . . . . . . . . 3 . 1 8 . . 9 1 27 Effects 42 | . . . . . . . . . . . . 7 7 2 19 . 7 Message Errors 7 | . . . . . . . . . . . . . . 1 5 . 1 Matter Fused 11 | . . . . . . . . . . . . 3 . . 5 . 3 Energy Discharges 7 | . . . . . . . . . . . . 2 4 1 . . . Parts Rejected 4 | . . . . . . . . . . . . . 1 . 1 . 2 Data Loss (minor) 4 | . . . . . . . . . . . . . 1 . 3 . . Data Loss (major) 2 | . . . . . . . . . . . . . . . 2 . . Misfires 3 | . . . . . . . . . . . . 2 1 . . . . Misdirections 1 | . . . . . . . . . . . . . . . . . 1 Weapon Failures 3 | . . . . . . . . . . . . . . . 3 . . Overload Shots . | . . . . . . . . . . . . . . . . . . Overflow Damage 713 | . 2 . 4 58 . . . 36 112 21 11 3 . 57 270 14 125 Projectiles . | . . . . . . . . . . . . . . . . . . Explosions 239 | . 2 . 4 . . . . . . 21 11 1 . . 177 14 9 Melee 474 | . . . . 58 . . . 36 112 . . 2 . 57 93 . 116 Knockbacks 2 | . . . . . . . . . . . . . . . . . 2 Impact . | . . . . . . . . . . . . . . . . . . Kinetic 2 | . . . . . . . . . . . . . . . . . 2 Secondary . | . . . . . . . . . . . . . . . . . . Self-Inflicted Damage 992 | . 2 . . 92 . . . . . . 25 . 25 . 593 117 138 Shots 42 | . 1 . . 2 . . . . . . 1 . 2 . 19 5 12 Rammed 1 | . . . . . . . . . . . 1 . . . . . . Targets Rammed 1 | . . . . . . . . . . . 1 . . . . . . Kicked . | . . . . . . . . . . . . . . . . . . Crushed . | . . . . . . . . . . . . . . . . . . Highest Temperature 352 | . . . 2 5 . . 4 11 4 . 45 226 207 36 352 224 . Average Temperature 84 | . . . 1 4 . . 4 8 4 . 21 98 89 21 103 73 . Received Heat Transfer 1256 | . . . 28 81 . . 22 . 27 9 186 66 67 4 294 42 430 Siege Activations 1 | . . . . . . . . . . . . . . . . . 1 Total Turns 6 | . . . . . . . . . . . . . . . . . 6 Longest Duration 6 | . . . . . . . . . . . . . . . . . 6 Robots Corrupted 9 | . . . . . . . . . . . . . . . 8 1 . Combat Hostiles 6 | . . . . . . . . . . . . . . . 5 1 . Parts Fried 23 | . . . . 1 . . . . 1 . . 1 . . 17 . 3 Impact Corruptions 5 | . . . . 2 . . . 1 2 . . . . . . . . Robots Melted 1 | . . . . . . . . . . . . 1 . . . . . Combat Hostiles 1 | . . . . . . . . . . . . 1 . . . . . Parts Melted 13 | . . . . . . . 1 . 1 1 3 6 . . . 1 . Heat Transferred 5219 | . . . 50 . . . 629 37 518 296 545 1406 388 37 1213 100 . Parts Sabotaged 3 | . . . . . . . . . . . . . . . 3 . . Parts Stolen . | . . . . . . . . . . . . . . . . . . Parts Stripped . | . . . . . . . . . . . . . . . . . . Power Chain Reactions 4 | . . . . . . . . . . . . . . . 2 1 1 Alert | -11 -10 -10 -9 -9 -9 -8 -8 -7 -6 -5 -4 -4 -4 -4 -4 -3 -3 ------- Run | Yrd Mat Min Mat Min Exi Min Mat Fac Fac Fac Fac Ext Cet Arc Hub Res Qua Peak Influence 1642 | . 71 27 261 258 . . 249 364 274 313 278 842 493 388 1642 1012 525 Initial 861 | . . 27 10 101 . . . 112 177 60 46 135 387 192 135 861 484 Average 422 | . 54 27 72 208 . . 156 252 143 171 99 402 477 350 1079 834 426 Maximum Alert Level 5 | . . . 1 1 . . 1 1 1 1 1 3 2 1 5 3 2 Low Security (%) 33 | 100 100 100 89 68 . 100 81 31 82 49 76 8 . 8 4 . . Level 1 26 | . . . 10 31 . . 18 68 17 50 23 60 7 91 7 . 45 Level 2 18 | . . . . . . . . . . . . 18 92 . 2 8 54 Level 3 15 | . . . . . . . . . . . . 11 . . 30 91 . Level 4 4 | . . . . . . . . . . . . . . . 44 . . Level 5 1 | . . . . . . . . . . . . . . . 11 . . High Security . | . . . . . . . . . . . . . . . . . . Max Security . | . . . . . . . . . . . . . . . . . . Squads Dispatched 34 | . . . 2 . . . 3 1 3 2 1 2 . . 10 5 5 Investigation 5 | . . . 1 . . . . . 1 . . 1 . . . 2 . Extermination 5 | . . . . . . . . . . . . . . . 2 . 3 Reinforcement 18 | . . . 1 . . . 3 . 1 1 1 1 . . 5 3 2 Assault 6 | . . . . . . . . 1 1 1 . . . . 3 . . Garrison . | . . . . . . . . . . . . . . . . . . Intercept . | . . . . . . . . . . . . . . . . . . Searches Triggered . | . . . . . . . . . . . . . . . . . . Construction Impeded 3 | . . . . . . . . . . . . 1 . . 2 . . Haulers Reinforced 3 | . . . . . . . . . . 1 . . . . . 1 1 Active Scanning Responses . | . . . . . . . . . . . . . . . . . . Cargo Convoy Interrupts . | . . . . . . . . . . . . . . . . . . Stealth | -11 -10 -10 -9 -9 -9 -8 -8 -7 -6 -5 -4 -4 -4 -4 -4 -3 -3 --------- Run | Yrd Mat Min Mat Min Exi Min Mat Fac Fac Fac Fac Ext Cet Arc Hub Res Qua Distress Signals 20 | . . . 2 . . . 3 . . 1 . 2 2 . 3 7 . Communications Jammed 60 | . . . . . . . . . . . 3 2 . . . 12 43 Distress Signals 60 | . . . . . . . . . . . 3 2 . . . 12 43 Times Spotted 203 | . 2 . 9 5 . . 8 8 13 10 11 20 10 5 50 18 34 Peak Tracking Total 17 | . 2 . 3 2 . . 5 5 4 4 7 4 5 2 8 6 17 Tactical Retreats 10 | . . . . 1 . . . . . 1 . 1 . . 3 1 3 Traps | -11 -10 -10 -9 -9 -9 -8 -8 -7 -6 -5 -4 -4 -4 -4 -4 -3 -3 ------- Run | Yrd Mat Min Mat Min Exi Min Mat Fac Fac Fac Fac Ext Cet Arc Hub Res Qua Traps Triggered 4 | . . . 1 . . . . 1 . 1 . . . . . 1 . Indirectly 1 | . . . . . . . . . . . . . . . . 1 . Trap Hack Attempts . | . . . . . . . . . . . . . . . . . . Triggered . | . . . . . . . . . . . . . . . . . . Disarmed . | . . . . . . . . . . . . . . . . . . Reprogrammed . | . . . . . . . . . . . . . . . . . . Reused . | . . . . . . . . . . . . . . . . . . Traps Extracted . | . . . . . . . . . . . . . . . . . . Installed . | . . . . . . . . . . . . . . . . . . Triggered . | . . . . . . . . . . . . . . . . . . Machines | -11 -10 -10 -9 -9 -9 -8 -8 -7 -6 -5 -4 -4 -4 -4 -4 -3 -3 ---------- Run | Yrd Mat Min Mat Min Exi Min Mat Fac Fac Fac Fac Ext Cet Arc Hub Res Qua Machines Disabled 44 | . 2 . 2 . . . . 1 1 2 1 5 . 1 22 3 4 Max in Single Turn 4 | . 1 . 2 . . . . 1 1 1 1 1 . . 4 1 1 Garrison Access 8 | . . . . . . . . 1 3 2 . . . . . 2 . Network Hub 2 | . . . . . . . . . . . . . . . 2 . . Machines Repaired . | . . . . . . . . . . . . . . . . . . Machines Dismantled 1 | . . . . . . . . . . . . . . . . . 1 Machines Sabotaged . | . . . . . . . . . . . . . . . . . . Overloaded Fab Kills . | . . . . . . . . . . . . . . . . . . Hacking | -11 -10 -10 -9 -9 -9 -8 -8 -7 -6 -5 -4 -4 -4 -4 -4 -3 -3 --------- Run | Yrd Mat Min Mat Min Exi Min Mat Fac Fac Fac Fac Ext Cet Arc Hub Res Qua Machines Accessed 48 | . . 1 2 . 2 . . 2 9 8 1 9 2 . 4 5 3 Terminals 31 | . . . 2 . . . . . 4 5 1 8 2 . 4 2 3 Fabricators 2 | . . . . . . . . . . 1 . . . . . 1 . Repair Stations 3 | . . . . . . . . . 1 . . 1 . . . 1 . Recycling Units . | . . . . . . . . . . . . . . . . . . Scanalyzers 1 | . . . . . . . . . 1 . . . . . . . . Garrison Access 8 | . . . . . . . . 2 3 2 . . . . . 1 . Total Hacks 105 | . . 1 4 . 2 . . 4 18 17 2 23 4 . 13 8 9 Successful 30 | . . 1 1 . 2 . . . 5 6 . 6 1 . 3 2 3 Failed 75 | . . . 3 . . . . 4 13 11 2 17 3 . 10 6 6 Catastrophic 24 | . . . 1 . . . . 2 6 2 1 6 . . 3 1 2 Database Lockouts . | . . . . . . . . . . . . . . . . . . Manual 53 | . . . 4 . 1 . . . 7 10 2 8 1 . 11 5 4 Terminals 74 | . . . 4 . . . . . 8 10 2 19 4 . 13 5 9 Fabricators 5 | . . . . . . . . . . 4 . . . . . 1 . Repair Stations 7 | . . . . . . . . . 2 . . 4 . . . 1 . Recycling Units . | . . . . . . . . . . . . . . . . . . Scanalyzers 1 | . . . . . . . . . 1 . . . . . . . . Garrison Access 15 | . . . . . . . . 4 7 3 . . . . . 1 . Terminal Hacks 14 | . . 1 . . 2 . . . 1 2 . 4 1 . 1 . 2 Record 5 | . . . . . 1 . . . 1 . . . 1 . . . 2 Prototype ID Bank 1 | . . . . . . . . . . . . 1 . . . . . Open Door 1 | . . 1 . . . . . . . . . . . . . . . Unreport Threat 3 | . . . . . . . . . . 1 . 1 . . 1 . . Locate Traps 2 | . . . . . . . . . . 1 . 1 . . . . . Zone Layout 1 | . . . . . . . . . . . . 1 . . . . . Derelict Proto ID Bank 1 | . . . . . 1 . . . . . . . . . . . . Fabricator Hacks . | . . . . . . . . . . . . . . . . . . Repair Station Hacks 2 | . . . . . . . . . 1 . . 1 . . . . . Scan Component 2 | . . . . . . . . . 1 . . 1 . . . . . Recycling Unit Hacks . | . . . . . . . . . . . . . . . . . . Scanalyzer . | . . . . . . . . . . . . . . . . . . Garrison Access Hacks 4 | . . . . . . . . . 2 1 . . . . . 1 . Seal Access 4 | . . . . . . . . . 2 1 . . . . . 1 . Unauthorized Hacks 10 | . . . 1 . . . . . 1 3 . 1 . . 2 1 1 Terminals 10 | . . . 1 . . . . . 1 3 . 1 . . 2 1 1 Botnet 10 | . . . 1 . . . . . 1 3 . 1 . . 2 1 1 Fabricators . | . . . . . . . . . . . . . . . . . . Repair Stations . | . . . . . . . . . . . . . . . . . . Recycling Units . | . . . . . . . . . . . . . . . . . . Scanalyzers . | . . . . . . . . . . . . . . . . . . Garrison Access . | . . . . . . . . . . . . . . . . . . Data Cores Recovered 2 | . . . . . . . . . 1 . . 1 . . . . . Used 2 | . . . . . . . . . 1 . . 1 . . . . . Hacking Detections 41 | . . . 2 . . . . 2 8 6 1 9 3 . 4 4 2 Full Trace Events 2 | . . . . . . . . . 1 . . 1 . . . . . Feedback Events . | . . . . . . . . . . . . . . . . . . Feedback Blocked . | . . . . . . . . . . . . . . . . . . Robot Schematics Acquired . | . . . . . . . . . . . . . . . . . . Robots Built . | . . . . . . . . . . . . . . . . . . Authchips . | . . . . . . . . . . . . . . . . . . Time . | . . . . . . . . . . . . . . . . . . Total Robot Build Rating . | . . . . . . . . . . . . . . . . . . Part Schematics Acquired . | . . . . . . . . . . . . . . . . . . Parts Built . | . . . . . . . . . . . . . . . . . . Authchips . | . . . . . . . . . . . . . . . . . . Time . | . . . . . . . . . . . . . . . . . . Total Part Build Rating . | . . . . . . . . . . . . . . . . . . Parts Repaired . | . . . . . . . . . . . . . . . . . . Time . | . . . . . . . . . . . . . . . . . . Parts Recycled . | . . . . . . . . . . . . . . . . . . Recycled Matter . | . . . . . . . . . . . . . . . . . . Retrieved Matter . | . . . . . . . . . . . . . . . . . . Retrieved Components . | . . . . . . . . . . . . . . . . . . Parts Scanalyzed . | . . . . . . . . . . . . . . . . . . Part Schematics Acquired . | . . . . . . . . . . . . . . . . . . Parts Damaged . | . . . . . . . . . . . . . . . . . . Bothacking | -11 -10 -10 -9 -9 -9 -8 -8 -7 -6 -5 -4 -4 -4 -4 -4 -3 -3 ------------ Run | Yrd Mat Min Mat Min Exi Min Mat Fac Fac Fac Fac Ext Cet Arc Hub Res Qua Used RIF Installer . | . . . . . . . . . . . . . . . . . . Robots Hacked . | . . . . . . . . . . . . . . . . . . Non-combat . | . . . . . . . . . . . . . . . . . . Combat . | . . . . . . . . . . . . . . . . . . Robot Hacks Applied . | . . . . . . . . . . . . . . . . . . Relay Couplers Released 6 | . . . . . . . . 2 1 1 . . . . . 2 . Machine Destruction 6 | . . . . . . . . 2 1 1 . . . . . 2 . Fabnet Peak Effective % . | . . . . . . . . . . . . . . . . . . Robots Rewired 7 | . . . . . . . . 1 . . . 6 . . . . . Allies Hacked . | . . . . . . . . . . . . . . . . . . Hacks Repelled . | . . . . . . . . . . . . . . . . . . Allies | -11 -10 -10 -9 -9 -9 -8 -8 -7 -6 -5 -4 -4 -4 -4 -4 -3 -3 -------- Run | Yrd Mat Min Mat Min Exi Min Mat Fac Fac Fac Fac Ext Cet Arc Hub Res Qua Total Allies 19 | . . . . . . . . 1 . . . 13 5 . . . . Largest Group 10 | . . . . . . . . 1 . . . 9 10 7 7 . . Highest-Rated Group 821 | . . . . . . . . 16 . . . 547 821 519 512 . . Highest-Rated Ally 159 | . . . . . . . . 16 . . . 159 159 96 96 . . Total Orders 12 | . . . . . . . . . . . . 5 2 . 5 . . STAY 5 | . . . . . . . . . . . . 2 1 . 2 . . FOLLOW 7 | . . . . . . . . . . . . 3 1 . 3 . . Ally Attacks 188 | . . . . . . . . 5 . . . 59 43 25 56 . . Total Damage 5535 | . . . . . . . . 45 . . . 1498 1623 685 1684 . . Kills 37 | . . . . . . . . . . . . 16 10 4 7 . . Allies Corrupted 6 | . . . . . . . . . . . . . . . 6 . . Allies Melted . | . . . . . . . . . . . . . . . . . . Intel | -11 -10 -10 -9 -9 -9 -8 -8 -7 -6 -5 -4 -4 -4 -4 -4 -3 -3 ------- Run | Yrd Mat Min Mat Min Exi Min Mat Fac Fac Fac Fac Ext Cet Arc Hub Res Qua Robot Analysis Total . | . . . . . . . . . . . . . . . . . . Derelict Logs Recovered 1 | . . 1 . . . . . . . . . . . . . . . Drone Launches . | . . . . . . . . . . . . . . . . . . Drone Recoveries . | . . . . . . . . . . . . . . . . . . Exploration | -11 -10 -10 -9 -9 -9 -8 -8 -7 -6 -5 -4 -4 -4 -4 -4 -3 -3 ------------- Run | Yrd Mat Min Mat Min Exi Min Mat Fac Fac Fac Fac Ext Cet Arc Hub Res Qua Turns Passed 9513 | 60 203 274 301 279 721 351 346 326 823 526 200 804 587 141 984 1054 1533 Spaces Moved 7251 | 33 111 35 153 149 442 218 179 523 1364 891 344 823 262 79 432 571 642 Core 117 | 5 . . . . . . . . . . . . . . . . 112 Treads 2978 | 28 111 35 153 149 442 218 165 . . . . . 73 79 432 571 522 Legs 446 | . . . . . . . . . . . . 249 189 . . . 8 Wheels . | . . . . . . . . . . . . . . . . . . Hover . | . . . . . . . . . . . . . . . . . . Flight 3710 | . . . . . . . 14 523 1364 891 344 574 . . . . . Fastest Speed 37 | 50 160 160 160 160 160 160 50 50 50 37 37 37 120 160 160 160 50 Average Speed 98 | 143 160 160 160 160 160 160 152 50 50 47 37 62 131 160 160 160 148 Slowest Speed 320 | 160 160 160 160 160 160 160 320 50 50 90 37 170 160 160 160 163 176 Overloaded Moves . | . . . . . . . . . . . . . . . . . . Propulsion Burnouts . | . . . . . . . . . . . . . . . . . . Robots Hopped 25 | . . . . . . . . 2 12 9 . 2 . . . . . Cave-ins Triggered 2 | . . . . . . . . . . . . 2 . . . . . Exploration Rate (%) 37 | 4 26 10 22 33 69 45 30 19 33 25 9 67 78 78 51 20 56 Regions Visited 17 Branch Regions 9 Pre-discovered Areas 1 | . . . . . 1 . . . . . . . . . . . . Known Exits Taken 10 | . . . . . . 1 . 1 1 1 1 1 1 1 1 1 . Unknown Exits Taken 7 | 1 1 1 1 1 1 . 1 . . . . . . . . . . Scrap Searched 1 | . . . . . . 1 . . . . . . . . . . . Spaces Dug 51 | . . . . . . . . . 9 5 5 25 . . . . 7 Terrain Destroyed 982 | . 6 . 35 26 . . 33 15 11 37 31 146 84 . 425 61 72 Melee 27 | . . . . . . . . . 9 5 5 1 . . . . 7 Projectile 31 | . . . . . . . 2 . 2 1 . . 2 . 14 . 10 AOE 924 | . 6 . 35 26 . . 31 15 . 31 26 145 82 . 411 61 55 Terrain Rammed . | . . . . . . . . . . . . . . . . . . Walls Destroyed . | . . . . . . . . . . . . . . . . . . Machines Disabled . | . . . . . . . . . . . . . . . . . . Actions | -11 -10 -10 -9 -9 -9 -8 -8 -7 -6 -5 -4 -4 -4 -4 -4 -3 -3 --------- Run | Yrd Mat Min Mat Min Exi Min Mat Fac Fac Fac Fac Ext Cet Arc Hub Res Qua Total 9125 | 43 125 253 193 166 460 220 249 577 1467 970 400 1066 488 88 590 677 1093 Wait 1012 | 3 2 215 6 . . 3 42 30 61 43 28 100 179 . 25 18 257 Move 7185 | 32 110 34 152 148 441 217 178 518 1341 873 343 816 261 78 431 570 642 Hop 22 | . . . . . . . . 2 10 8 . 2 . . . . . Pick Up 110 | 2 4 1 7 . 7 . 6 1 9 11 . 14 6 1 6 10 25 Fast Attach 89 | 6 1 1 2 1 1 . 4 5 9 8 2 8 7 1 9 13 11 Attach 49 | . . . . . . . 3 2 3 . 1 11 2 . 9 6 12 Detach 27 | . . . . . 1 . 2 2 5 1 . 3 1 1 4 4 3 Swap 62 | . 2 1 5 1 1 . 4 2 2 1 9 8 8 2 5 5 6 Drop 157 | . . 1 9 1 9 . 7 6 13 15 6 12 14 1 7 20 36 Fire 205 | . 6 . 12 7 . . 3 2 . 3 3 14 8 3 78 28 38 Melee 124 | . . . . 8 . . . 3 14 7 7 16 2 1 16 3 47 Ram 1 | . . . . . . . . . . . 1 . . . . . . Kick . | . . . . . . . . . . . . . . . . . . Crush . | . . . . . . . . . . . . . . . . . . Escape Stasis 2 | . . . . . . . . . . . . 2 . . . . . Rewire 64 | . . . . . . . . 4 . . . 60 . . . . . Trap . | . . . . . . . . . . . . . . . . . . Miscellaneous 16 | . . . . . . . . . . . . . . . . . 16 Route ------- -11/Scrapyard -10/Materials -10/Mines -9/Materials (discovered 3 exits: Mat x2 / [*Min]) -9/Mines (discovered 2 exits: *Mat / *Exi) -9/Exiles -8/Mines -8/Materials -7/Factory -6/Factory -5/Factory -4/Factory -4/Extension (discovered 2 exits: *Res / *Cet) -4/Cetus (discovered 2 exits: *Res / *Arc) -4/Archives (discovered 3 exits: *Res / *Hub x2) -4/Hub_04(d) -3/Research -3/Quarantine History --------- Turn | Location | Event 34 | -11/Scrapyard | Discovered new exit (range 15) 61 | -11/Scrapyard | Entered Materials 253 | -10/Materials | Discovered new exit (range 8) 264 | -10/Materials | Entered Mines 277 | -10/Mines | Met a Derelict who couldn't figure out how to use a Trap Extractor 309 | -10/Mines | Build established: Mutant 500 | -10/Mines | Learned 4 Materials zone layouts 527 | -10/Mines | Discovered new exit (range 7) 538 | -10/Mines | Entered Materials 538 | -9/Materials | Evolved 2 slots: Propulsion x1, Utility x1 539 | -9/Materials | Identified exit to Materials 808 | -9/Materials | Discovered new exit (range 12) 839 | -9/Materials | Entered Mines 988 | -9/Mines | Discovered exit to Materials (range 12) 1110 | -9/Mines | Deemed a non-threat by the Exiles lab entrance 1111 | -9/Mines | Discovered new exit (range 5) 1118 | -9/Mines | Entered Exiles 1155 | -9/Exiles | Met 8R-AWN 1184 | -9/Exiles | Met EX-HEX 1235 | -9/Exiles | Met EX-BIN 1253 | -9/Exiles | Aligned with FarCom system 1254 | -9/Exiles | Given EX-Vault access code 1294 | -9/Exiles | Opened EX-Vault 1309 | -9/Exiles | Found AWS/Thermal 1316 | -9/Exiles | Found Skeleton Box 1320 | -9/Exiles | Found Flying Fortress v7 1359 | -9/Exiles | Warned to stay clear of 0b10 Research branches 1449 | -9/Exiles | Met EX-DEC 1478 | -9/Exiles | Learned location of Zion (-7) 1824 | -9/Exiles | Discovered new exit (range 10) 1839 | -9/Exiles | Stole three prototypes: AWS/Thermal, Flying Fortress v7, Skeleton Box 1839 | -9/Exiles | Entered Mines 1894 | -8/Mines | Discovered exit to Materials (range 5) 2190 | -8/Mines | Entered Materials 2190 | -8/Materials | Evolved 2 slots: Propulsion x1, Weapon x1 2411 | -8/Materials | Met 7R-MNS 2528 | -8/Materials | Discovered new exit (range 5) 2536 | -8/Materials | Entered Factory 2536 | -7/Factory | Evolved 2 slots: Utility x2 2537 | -7/Factory | Caught up to 7R-MNS 2538 | -7/Factory | FarCom data flow suspended 2808 | -7/Factory | Discovered new exit (range 15) 2861 | -7/Factory | Identified exit to Factory 2862 | -7/Factory | Entered another Factory area 2862 | -6/Factory | Evolved 2 slots: Utility x2 2863 | -6/Factory | Caught up to 7R-MNS 3007 | -6/Factory | Build established: Scout 3252 | -6/Factory | Spotted B-75 Beast 3487 | -6/Factory | Build established: Mutant 3674 | -6/Factory | Discovered new exit (range 8) 3683 | -6/Factory | Identified exit to Factory 3685 | -6/Factory | Entered another Factory area 3685 | -5/Factory | Evolved 2 slots: Propulsion x2 3686 | -5/Factory | Caught up to 7R-MNS 3827 | -5/Factory | Build established: Scout 4148 | -5/Factory | Spotted B-75 Beast 4187 | -5/Factory | Discovered new exit (range 19) 4203 | -5/Factory | Identified exit to Factory 4211 | -5/Factory | Entered another Factory area 4211 | -4/Factory | Evolved 2 slots: Utility x2 4212 | -4/Factory | Caught up to 7R-MNS 4366 | -4/Factory | Attacked by 7R-MNS 4389 | -4/Factory | Discovered new exit (range 22) 4411 | -4/Factory | Identified exit to Extension 4411 | -4/Factory | Entered Extension 4433 | -4/Extension | Disrupted transfer network 4578 | -4/Extension | Remotely autohacked Sealed Heavy Doors 4580 | -4/Extension | Rescued a captive Derelict 4628 | -4/Extension | Remotely autohacked Sealed Heavy Doors 4629 | -4/Extension | Rescued A7 4724 | -4/Extension | Spotted B-86 Titan 4810 | -4/Extension | Crushed by falling debris 4816 | -4/Extension | Crushed by falling debris 4847 | -4/Extension | Lost 3 parts (2n1u) 5017 | -4/Extension | Remotely autohacked Sealed Heavy Doors 5017 | -4/Extension | Rescued a captive Derelict 5019 | -4/Extension | Rescued a captive Derelict 5105 | -4/Extension | Remotely autohacked Sealed Heavy Doors 5105 | -4/Extension | Rescued a captive Derelict 5106 | -4/Extension | Rescued a captive Derelict 5165 | -4/Extension | Remotely autohacked Sealed Heavy Doors 5166 | -4/Extension | Rescued a captive Derelict 5191 | -4/Extension | Discovered new exit (range 10) 5192 | -4/Extension | Discovered new exit (range 6) 5198 | -4/Extension | Identified exit to Cetus 5215 | -4/Extension | Entered Cetus 5215 | -4/Cetus | Accompanied by 9 allies (A7) 5220 | -4/Cetus | Acquired a Cetus Manufacturing Module code from A7 5231 | -4/Cetus | Spotted Cetus Guard 5231 | -4/Cetus | Spotted Cetus Guard 5235 | -4/Cetus | Spotted Cetus Guard 5237 | -4/Cetus | Spotted Cetus Guard 5248 | -4/Cetus | Allies destroyed Cetus Guard 5252 | -4/Cetus | Allies destroyed Cetus Guard 5253 | -4/Cetus | Allies destroyed Cetus Guard 5256 | -4/Cetus | Allies destroyed Cetus Guard 5282 | -4/Cetus | Lost 4 allies 5370 | -4/Cetus | Started Cetus Manufacturing Module 5376 | -4/Cetus | Remotely autohacked Sealed Heavy Doors 5380 | -4/Cetus | Escorted A7 to Cetus Mainframe 5395 | -4/Cetus | Manufactured an Enhanced Grunt 5405 | -4/Cetus | Build established: Scavenger-Tank 5420 | -4/Cetus | Manufactured an Enhanced Grunt 5445 | -4/Cetus | Manufactured an Enhanced Grunt 5470 | -4/Cetus | Manufactured an Enhanced Grunt 5495 | -4/Cetus | Manufactured an Enhanced Grunt 5587 | -4/Cetus | Discovered new exit (range 15) 5610 | -4/Cetus | Spotted Cetus Guard 5610 | -4/Cetus | Spotted Cetus Guard 5615 | -4/Cetus | Spotted Cetus Guard 5615 | -4/Cetus | Spotted Cetus Guard 5621 | -4/Cetus | Discovered new exit (range 15) 5624 | -4/Cetus | Allies destroyed Cetus Guard 5627 | -4/Cetus | Allies destroyed Cetus Guard 5629 | -4/Cetus | Allies destroyed Cetus Guard 5630 | -4/Cetus | Allies destroyed Cetus Guard 5648 | -4/Cetus | Met Revision 17 5680 | -4/Cetus | Identified exit to Research 5780 | -4/Cetus | Murdered A7 5780 | -4/Cetus | Destroyed A7 5781 | -4/Cetus | Extracted ID and sensor layout for unrecognized location from A7's data core 5793 | -4/Cetus | Identified exit to Archives 5802 | -4/Cetus | Entered Archives 5802 | -4/Archives | Accompanied by 7 allies 5849 | -4/Archives | Unable to access archive contents 5866 | -4/Archives | Discovered new exit (range 16) 5892 | -4/Archives | Discovered exit to Research (range 15) 5910 | -4/Archives | Discovered new exit (range 14) 5929 | -4/Archives | Identified exit to Hub_04(d) 5943 | -4/Archives | Entered Hub_04(d) 5943 | -4/Hub_04(d) | Accompanied by 7 allies 6053 | -4/Hub_04(d) | Network Hub disabled 6065 | -4/Hub_04(d) | Found Prototype Launcher 6065 | -4/Hub_04(d) | Identified Mni. Smartbomb Launcher 6071 | -4/Hub_04(d) | Found Prototype Launcher 6071 | -4/Hub_04(d) | Identified Tesla Bomb Launcher 6088 | -4/Hub_04(d) | Spotted Lightning 6091 | -4/Hub_04(d) | Spotted Lightning 6095 | -4/Hub_04(d) | Spotted Lightning 6127 | -4/Hub_04(d) | Destroyed Lightning 6133 | -4/Hub_04(d) | Destroyed Lightning 6150 | -4/Hub_04(d) | Lost 7 allies 6193 | -4/Hub_04(d) | First assault squad dispatched 6215 | -4/Hub_04(d) | Destroyed Lightning 6311 | -4/Hub_04(d) | Found Tesla Bomb Launcher 6313 | -4/Hub_04(d) | Found Tesla Bomb Launcher 6316 | -4/Hub_04(d) | Found Faulty Mni. Smartbomb Launcher 6453 | -4/Hub_04(d) | Build established: Scavenger-Mutant 6704 | -4/Hub_04(d) | Network Hub disabled 6767 | -4/Hub_04(d) | Discovered exit to Research (range 14) 6837 | -4/Hub_04(d) | Destroyed 7 combat bots 6927 | -4/Hub_04(d) | Entered Research 6927 | -3/Research | Evolved 2 slots: Power x1, Utility x1 7127 | -3/Research | Revision forces began assault on 0b10 7139 | -3/Research | Met up with Revision 17++ 7280 | -3/Research | Found Quantum Capacitor 7366 | -3/Research | Spotted B-86 Titan 7455 | -3/Research | Found Gamma Bomb Array 7458 | -3/Research | Found Gamma Bomb Array 7460 | -3/Research | Found Gamma Bomb Array 7627 | -3/Research | Research terminal network offline 7677 | -3/Research | Spotted Striker 7686 | -3/Research | Spotted Striker 7699 | -3/Research | Destroyed Striker 7712 | -3/Research | Discovered new exit (range 15) 7736 | -3/Research | Identified exit to Quarantine 7768 | -3/Research | Found Prototype Slashing Weapon 7768 | -3/Research | Identified Vibroblade 7771 | -3/Research | Found Vibroblade 7775 | -3/Research | Found Vibroblade 7895 | -3/Research | Found Prototype Device 7895 | -3/Research | Identified Exp. Shield Generator 7981 | -3/Research | Entered Quarantine 8043 | -3/Quarantine | Found Alien Artifact 8043 | -3/Quarantine | Identified Core Reset Matrix 8043 | -3/Quarantine | Used Core Reset Matrix 8047 | -3/Quarantine | Detected hypermatrix surge 8047 | -3/Quarantine | Sensed 5 artifacts in vicinity 8080 | -3/Quarantine | Found Sigix Corpse 8093 | -3/Quarantine | Found Sigix Corpse 8110 | -3/Quarantine | Build established: Mutant 8226 | -3/Quarantine | Remotely autohacked Sealed Heavy Doors 8227 | -3/Quarantine | Met incapacitated Sigix Warrior 8227 | -3/Quarantine | Lockdown squad dispatched 8232 | -3/Quarantine | Acquired the access code to the Sigix quarantine chamber 8319 | -3/Quarantine | Spotted Lightning 8454 | -3/Quarantine | Found Prototype Slashing Weapon 8458 | -3/Quarantine | Identified Nanosword 9323 | -3/Quarantine | Spotted Lightning 9326 | -3/Quarantine | Spotted Lightning 9415 | -3/Quarantine | System corruption reached 10% 9437 | -3/Quarantine | Core integrity fell below 50% 9458 | -3/Quarantine | Cryocooling Duct disabled 9473 | -3/Quarantine | Ambient heat levels rising (+20) 9473 | -3/Quarantine | Non-combat units ordered to evacuate 9483 | -3/Quarantine | Lost 15 parts (2p5n4u4w) 9503 | -3/Quarantine | Found Subatomic Replicator 9507 | -3/Quarantine | Core integrity fell below 20% 9514 | -3/Quarantine | Destroyed by Lightning with EMDS Last Messages --------------- 09503_ Acquired Subatomic Replicator. 09504_ Myomer Leg destroyed. 09504_ Dropped Antimatter Reactor. 09505_ Acquired Nanosword. 09506_ System corrupted: Imp. Heavy Siege Treads rejected. 09506_ Penetrated by EMDS Slug. 09506_ Adv. Corruption Screen intercepted 1% system corruption. 09507_ Penetrated by EMDS Slug. 09511_ EMDS Slug penetrates Door. 09511_ >> Machine Analyzer network decryption results: 09511_ Garrison Access x1 09512_ >> Machine Analyzer network decryption results: 09512_ Terminal x1 09514_ EMDS Slug penetrates Wall. 09514_ Adv. Corruption Screen intercepted 1% system corruption. Map ----- +----------------------------------------------------+ | | | | | ?????????????????????????????????????????????????? | | ?????????????????????????????????????????????????? | | ?????????????????????????????????????????????????? | | ????????????????????"""??????????????????????????? | | ???????????????????""""??????????????????????????? | | ????????????????????"""?????""???????????????????? | | ?????????????????????"??????""???????????????????? | | ????????????????????????????""???????????????????? | | ????????????????????"""??????G???????????????????? | | ???????????????????""""?????""???????????????????? | | ????????????????????"""?????""???????????????????? | | ?????????????????????"??????""???????????????????? | | ?????????????????????????????????????????????????? | | ??????????????##########+##??????????????????????? | | ??????????????# ??????????????????????? | | ??????????????# ??????????????????????? | | ??????????????# ??????????????????????? | | ????????#####?# ??????????????????????? | | ????????# #?# k #??????????????????????? | | ????????# #?# #??????????????????????? | | ######### ### !!c c #??????????????????????? | | !!! #??????????????????????? | | k !! #??????????????????????? | | """ @##########?????????????? | | """ # #?????????????? | | ##"##### """ # " #?????????????? | | # = """" # " T #?????????????? | | ! """ # """" # "" #?????????????? | | """ # """" + "* " #?????????????? | | """ / """" # ""=& #?????????????? | | # "T" # & #?????????????? | | # """ # " #?????????????? | | #####/### ######+########## #?????????????? | | ##### #?# # #??#"######/######????????? | | ! ##?#?# # #??# #?# #????????? | | #????# # #??# #?# #????????? | | "" #????# # #??# #?# ] #????????? | | ""??????# # """"""""" #??# #?# #????????? | | R"??????# # """ """ #??# #?#####/#####????????? | | ""??????? # #??# #?????# #????????????? | | " #????? # """""""" #??# #?????# #????????????? | | #????? # """ """ #??# ####### #????????????? | | ??????????# #### #########????? | | ??????????# + ## ! !#????? | | ??????????# # ## #????? | | ??????????#####+######## # """ #????? | | ??????????? + """ #????? | | ??????????? # """ #????? | +----------------------------------------------------+ Best States ------------- Heat Dissipation 72 Energy Generation 41 Energy Capacity 1095 Matter Stores 300 Matter Capacity 300 Sight Range 22 Robot Scan Range 18 Terrain Scan Range 24 Terrain Scan Density 410 Jamming Range 16 Corruption Block 20 Armor Coverage 675 Phase Shifting 10 Evasion (%) 62 Target Analysis 12 Recoil Reduction 6 Item Schematics ----------------- None Robot Schematics ------------------ None Fabricated ------------ Nothing Alien Tech Used ----------------- Core Reset Matrix Achievements -------------- None Challenges ------------ None Game ------ Seed SubdwellerGuidedChip Manual? 0 Play Time 02:03:41 Cumulative 179.3 hours Start 2024.05.14 @ 15:32:05 End 2024.05.14 @ 17:52:16 Sessions 3 Manual Loads 0 Difficulty Rogue Special Mode None Game No. 174 Rogue 169 Adventurer 5 Explorer 0 Win Type - Total 3 Types 2/0/0/1/0/0/0/0/0 Lore% 54 Gallery% 74 Achievement% 55 Wizard Run 0 Options --------- Layout 2 ASCII 0 Keyboard 0 Movement Mouse Keybinds 0 Fullscreen 1 Font 24/Terminus Map View 50x44 Zoom Use 0% Tactical HUD 1 Map Filters NONE Filters NONE Steam 1 RUN: 2d7247e7-1c05-4a11-979b-b63a5fdc3ca2